fUSD/lending_fUSD_20250513
["ID","MTS","AMOUNT","RATE_DAILY","PERIOD"]
[360965061,1747167046938,-400.0,0.00010995,2]
[360965062,1747167046947,-400.0,0.00010995,2]
[360965063,1747167046956,-400.0,0.00010995,2]
[360965064,1747167046966,-400.0,0.00010995,2]
[360965065,1747167046975,-405.6607393,0.00010995,2]
[360965066,1747167046984,-400.0,0.00010995,2]
[360965067,1747167046994,-400.0,0.00010995,2]
[360965068,1747167047003,-400.0,0.00010995,2]
[360965069,1747167047013,-400.0,0.00010995,2]
[360965070,1747167047022,-400.0,0.00010995,2]
[360965071,1747167047031,-400.0,0.00010995,2]
[360965072,1747167047041,-400.0,0.00010995,2]
[360965073,1747167047050,-400.0,0.00010995,2]
[360965074,1747167047060,-608.31,0.00010995,2]
[360965075,1747167047070,-400.0,0.00010995,2]
[360965076,1747167047079,-291.9871,0.00010995,2]
[360965077,1747167047089,-937.88,0.00010995,2]
[360965078,1747167047100,-400.0,0.00010995,2]
[360965079,1747167047110,-440.22,0.00010995,2]
[360965080,1747167047120,-400.0,0.00010995,2]
[360965081,1747167047130,-850.86,0.00010995,2]
[360965082,1747167047139,-410.93,0.00010995,2]
[360965083,1747167047149,-572.34,0.00010995,2]
[360965084,1747167047158,-400.0,0.00010995,2]
[360965085,1747167047168,-400.0,0.00010995,2]
[360965086,1747167047178,-400.0,0.00010995,2]
[360965087,1747167047187,-400.0,0.00010995,2]
[360965088,1747167047197,-400.0,0.00010995,2]
[360965089,1747167047207,-400.0,0.00010995,2]
[360965090,1747167047216,-400.0,0.00010995,2]
[360965091,1747167047225,-400.0,0.00010995,2]
[360965092,1747167047235,-614.74,0.00010995,2]
[360965093,1747167047244,-400.0,0.00010995,2]
[360965094,1747167047254,-1114.41,0.00010995,2]
[360965095,1747167047264,-400.0,0.00010995,2]
[360965096,1747167047273,-400.0,0.00010995,2]
[360965097,1747167047283,-505.98,0.00010995,2]
[360965098,1747167047292,-1063.34,0.00010995,2]
[360965099,1747167047301,-436.43,0.00010995,2]
[360965100,1747167047311,-598.57,0.00010995,2]
[360965101,1747167047321,-400.0,0.00010995,2]
[360965102,1747167047330,-921.59,0.00010995,2]
[360965103,1747167047345,-1112.11,0.00010995,2]
[360965104,1747167047354,-400.0,0.00010995,2]
[360965105,1747167047363,-400.0,0.00010995,2]
[360965106,1747167047373,-1535.91,0.00010995,2]
[360965107,1747167047382,-400.0,0.00010995,2]
[360965108,1747167047392,-719.75,0.00010995,2]
[360965109,1747167047401,-400.0,0.00010995,2]
[360965110,1747167047412,-400.0,0.00010995,2]
[360965111,1747167047422,-400.0,0.00010995,2]
[360965112,1747167047432,-400.0,0.00010995,2]
[360965113,1747167047441,-400.0,0.00010995,2]
[360965114,1747167047451,-400.0,0.00010995,2]
[360965115,1747167047460,-400.0,0.00010995,2]
[360965116,1747167047470,-400.0,0.00010995,2]
[360965117,1747167047479,-496.97416648,0.00010995,2]
[360965118,1747167047489,-400.0,0.00010995,2]
[360965119,1747167047499,-637.43,0.00010995,2]
[360965120,1747167047507,-400.0,0.00010995,2]
[360965121,1747167047729,-400.0,0.00010995,2]
[360965122,1747167047742,-400.0,0.00010995,2]
[360965123,1747167047752,-400.0,0.00010995,2]
[360965124,1747167047761,-526.92,0.00010995,2]
[360965125,1747167047771,-636.56,0.00010995,2]
[360965126,1747167047780,-441.9394754,0.00010995,2]
[360965127,1747167047790,-597.52,0.00010995,2]
[360965128,1747167047799,-400.0,0.00010995,2]
[360965129,1747167047808,-400.0,0.00010995,2]
[360965130,1747167047818,-400.0,0.00010995,2]
[360965131,1747167047827,-714.52,0.00010995,2]
[360965132,1747167047836,-400.0,0.00010995,2]
[360965133,1747167047846,-400.0,0.00010995,2]
[360965134,1747167047855,-415.36,0.00010995,2]
[360965135,1747167047865,-515.73,0.00010995,2]
[360965136,1747167047874,-400.0,0.00010995,2]
[360965137,1747167047884,-291.987093,0.00010995,2]
[360965138,1747167047893,-1051.52,0.00010995,2]
[360965139,1747167047902,-536.51,0.00010995,2]
[360965140,1747167047911,-1066.14,0.00010995,2]
[360965141,1747167047920,-400.0,0.00010995,2]
[360965142,1747167047930,-400.0,0.00010995,2]
[360965143,1747167047939,-400.0,0.00010995,2]
[360965144,1747167047949,-400.0,0.00010995,2]
[360965145,1747167047959,-447.35,0.00010995,2]
[360965146,1747167047969,-1059.96,0.00010995,2]
[360965147,1747167047977,-1653.97,0.00010995,2]
[360965148,1747167047987,-400.0,0.00010995,2]
[360965149,1747167047996,-404.19889203,0.00010995,2]
[360965150,1747167048005,-1380.91,0.00010995,2]
[360965151,1747167048015,-400.0,0.00010995,2]
[360965152,1747167048024,-437.44,0.00010995,2]
[360965153,1747167048033,-400.0,0.00010995,2]
[360965154,1747167048043,-2000.0,0.00010995,2]
[360965155,1747167048052,-400.0,0.00010995,2]
[360965156,1747167048063,-458.53,0.00010995,2]
[360965157,1747167048072,-400.0,0.00010995,2]
[360965158,1747167048082,-423.01,0.00010995,2]
[360965159,1747167048092,-400.0,0.00010995,2]
[360965160,1747167048104,-465.63,0.00010995,2]
[360965161,1747167048114,-400.0,0.00010995,2]
[360965162,1747167048124,-429.25,0.00010995,2]
[360965163,1747167048134,-404.63,0.00010995,2]
[360965164,1747167048144,-1619.16,0.00010995,2]
[360965165,1747167048154,-400.0,0.00010995,2]
[360965166,1747167048164,-400.0,0.00010995,2]
[360965167,1747167048174,-1610.71,0.00010995,2]
[360965168,1747167048185,-400.0,0.00010995,2]
[360965169,1747167048195,-400.0,0.00010995,2]
[360965170,1747167048205,-400.0,0.00010995,2]
[360965171,1747167048216,-457.11,0.00010995,2]
[360965172,1747167048225,-1566.7,0.00010995,2]
[360965173,1747167048236,-400.0,0.00010995,2]
[360965174,1747167048246,-317.4337825,0.00010995,2]
[360965175,1747167048256,-1098.16,0.00010995,2]
[360965176,1747167048267,-628.48,0.00010995,2]
[360965177,1747167048279,-6467.59,0.00010995,2]
[360965178,1747167048288,-593.08,0.00010995,2]
[360965179,1747167048298,-2127.74,0.00010995,2]
[360965180,1747167048308,-400.0,0.00010995,2]
[360965181,1747167048318,-400.0,0.00010995,2]
[360965182,1747167048332,-750.0,0.00010995,2]
[360965183,1747167048342,-780.85,0.00010995,2]
[360965184,1747167048354,-400.0,0.00010995,2]
[360965185,1747167048364,-1847.71,0.00010995,2]
[360965187,1747167048374,-436.7,0.00010995,2]
[360965189,1747167048384,-538.57,0.00010995,2]
[360965191,1747167048393,-837.31,0.00010995,2]
[360965193,1747167048403,-507.6,0.00010995,2]
[360965194,1747167048412,-291.987093,0.00010995,2]
[360965196,1747167048423,-400.0,0.00010995,2]
[360965198,1747167048433,-1595.02,0.00010995,2]
[360965199,1747167048442,-400.0,0.00010995,2]
[360965200,1747167048451,-400.0,0.00010995,2]
[360965201,1747167048462,-400.0,0.00010995,2]
[360965202,1747167048472,-400.0,0.00010995,2]
[360965203,1747167048481,-481.6,0.00010995,2]
[360965204,1747167048491,-566.89,0.00010995,2]
[360965205,1747167048501,-602.19,0.00010995,2]
[360965206,1747167048511,-400.0,0.00010995,2]
[360965207,1747167048521,-400.0,0.00010995,2]
[360965208,1747167048531,-863.56,0.00010995,2]
[360965209,1747167048541,-400.0,0.00010995,2]
[360965210,1747167048551,-400.0,0.00010995,2]
[360965211,1747167048561,-432.03,0.00010995,2]
[360965212,1747167048571,-400.0,0.00010995,2]
[360965213,1747167048581,-1266.52,0.00010995,2]
[360965214,1747167048590,-400.0,0.00010995,2]
[360965215,1747167048601,-400.0,0.00010995,2]
[360965216,1747167048611,-438.79,0.00010995,2]
[360965217,1747167048620,-1445.49,0.00010995,2]
[360965218,1747167048631,-1987.46,0.00010995,2]
[360965219,1747167048641,-1141.34,0.00010995,2]
[360965220,1747167048651,-400.0,0.00010995,2]
[360965221,1747167048660,-855.4,0.00010995,2]
[360965222,1747167048669,-400.0,0.00010995,2]
[360965223,1747167048679,-400.0,0.00010995,2]
[360965224,1747167048689,-731.68,0.00010995,2]
[360965225,1747167048698,-1157.31,0.00010995,2]
[360965226,1747167048707,-400.0,0.00010995,2]
[360965227,1747167048717,-400.0,0.00010995,2]
[360965228,1747167048727,-400.0,0.00010995,2]
[360965229,1747167048737,-749.98,0.00010995,2]
[360965230,1747167048746,-400.0,0.00010995,2]
[360965231,1747167048756,-400.0,0.00010995,2]
[360965232,1747167048766,-643.23,0.00010995,2]
[360965233,1747167048775,-400.0,0.00010995,2]
[360965234,1747167048784,-400.0,0.00010995,2]
[360965235,1747167048794,-400.0,0.00010995,2]
[360965236,1747167048803,-793.0,0.00010995,2]
[360965237,1747167048813,-462.27,0.00010995,2]
[360965238,1747167048822,-400.0,0.00010995,2]
[360965239,1747167048831,-400.0,0.00010995,2]
[360965240,1747167048841,-400.0,0.00010995,2]
[360965241,1747167048852,-400.0,0.00010995,2]
[360965242,1747167048861,-400.0,0.00010995,2]
[360965243,1747167048870,-400.0,0.00010995,2]
[360965245,1747167048880,-400.0,0.00010995,2]
[360965247,1747167048889,-1463.54,0.00010995,2]
[360965249,1747167048899,-400.0,0.00010995,2]
[360965251,1747167048908,-400.0,0.00010995,2]
[360965252,1747167048917,-896.6,0.00010995,2]
[360965253,1747167048927,-400.0,0.00010995,2]
[360965254,1747167048937,-400.0,0.00010995,2]
[360965255,1747167048946,-400.0,0.00010995,2]
[360965256,1747167048956,-400.0,0.00010995,2]
[360965257,1747167048966,-400.0,0.00010995,2]
[360965258,1747167048976,-1367.23,0.00010995,2]
[360965259,1747167048986,-485.86,0.00010995,2]
[360965260,1747167048995,-561.81,0.00010995,2]
[360965261,1747167049005,-400.0,0.00010995,2]
[360965262,1747167049014,-400.0,0.00010995,2]
[360965264,1747167049023,-1920.49,0.00010995,2]
[360965266,1747167049033,-400.0,0.00010995,2]
[360965268,1747167049042,-400.0,0.00010995,2]
[360965269,1747167049052,-1143.22,0.00010995,2]
[360965271,1747167049061,-400.0,0.00010995,2]
[360965273,1747167049070,-400.0,0.00010995,2]
[360965275,1747167049080,-400.0,0.00010995,2]
[360965277,1747167049089,-872.15,0.00010995,2]
[360965279,1747167049101,-400.0,0.00010995,2]
[360965281,1747167049111,-400.0,0.00010995,2]
[360965283,1747167049120,-478.22,0.00010995,2]
[360965285,1747167049130,-400.0,0.00010995,2]
[360965287,1747167049139,-708.35,0.00010995,2]
[360965288,1747167049149,-1029.62,0.00010995,2]
[360965290,1747167049159,-675.45,0.00010995,2]
[360965292,1747167049169,-1707.13,0.00010995,2]
[360965294,1747167049179,-1219.7,0.00010995,2]
[360965296,1747167049188,-778.99,0.00010995,2]
[360965298,1747167049198,-595.37,0.00010995,2]
[360965300,1747167049207,-400.0,0.00010995,2]
[360965302,1747167049217,-1203.86,0.00010995,2]
[360965304,1747167049227,-400.0,0.00010995,2]
[360965305,1747167049236,-500.57,0.00010995,2]
[360965307,1747167049246,-633.23,0.00010995,2]
[360965309,1747167049257,-512.83,0.00010995,2]
[360965311,1747167049266,-1046.08,0.00010995,2]
[360965313,1747167049276,-400.0,0.00010995,2]
[360965315,1747167049286,-400.0,0.00010995,2]
[360965317,1747167049295,-709.08,0.00010995,2]
[360965319,1747167049305,-400.0,0.00010995,2]
[360965322,1747167049319,-535.55,0.00010995,2]
[360965324,1747167049329,-400.0,0.00010995,2]
[360965325,1747167049344,-291.987093,0.00010995,2]
[360965327,1747167049358,-400.0,0.00010995,2]
[360965329,1747167049369,-400.0,0.00010995,2]
[360965331,1747167049379,-400.0,0.00010995,2]
[360965333,1747167049389,-1266.98,0.00010995,2]
[360965334,1747167049401,-400.0,0.00010995,2]
[360965335,1747167049412,-400.0,0.00010995,2]
[360965336,1747167049422,-400.0,0.00010995,2]
[360965337,1747167049432,-614.44,0.00010995,2]
[360965338,1747167049443,-400.0,0.00010995,2]
[360965339,1747167049453,-400.0,0.00010995,2]
[360965340,1747167049464,-400.0,0.00010995,2]
[360965341,1747167049475,-451.01,0.00010995,2]
[360965342,1747167049485,-400.0,0.00010995,2]
[360965343,1747167049496,-492.27,0.00010995,2]
[360965344,1747167049506,-2118.67,0.00010995,2]
[360965345,1747167049517,-500.0,0.00010995,2]
[360965346,1747167049527,-400.0,0.00010995,2]
[360965347,1747167049537,-400.0,0.00010995,2]
[360965348,1747167049549,-635.49,0.00010995,2]
[360965349,1747167049560,-966.8,0.00010995,2]
[360965350,1747167049571,-400.0,0.00010995,2]
[360965351,1747167049581,-400.0,0.00010995,2]
[360965352,1747167049591,-517.88,0.00010995,2]
[360965353,1747167049601,-400.0,0.00010995,2]
[360965355,1747167049611,-400.0,0.00010995,2]
[360965357,1747167049621,-400.0,0.00010995,2]
[360965359,1747167049631,-400.0,0.00010995,2]
[360965361,1747167049641,-400.0,0.00010995,2]
[360965363,1747167049651,-400.0,0.00010995,2]
[360965365,1747167049661,-400.0,0.00010995,2]
[360965367,1747167049671,-1274.4,0.00010995,2]
[360965369,1747167049680,-400.0,0.00010995,2]
[360965371,1747167049690,-1321.1,0.00010995,2]
[360965373,1747167049700,-870.32,0.00010995,2]
[360965375,1747167049710,-502.72,0.00010995,2]
[360965377,1747167049719,-400.0,0.00010995,2]
[360965379,1747167049729,-2590.41,0.00010995,2]
[360965381,1747167049739,-400.0,0.00010995,2]
[360965383,1747167049749,-400.0,0.00010995,2]
[360965385,1747167049759,-818.74,0.00010995,2]
[360965387,1747167049769,-400.0,0.00010995,2]
[360965389,1747167049779,-462.74205827,0.00010995,2]
[360965390,1747167049789,-554.81,0.00010995,2]
[360965392,1747167049799,-458.28,0.00010995,2]
[360965395,1747167049809,-7223.26,0.00010995,2]
[360965396,1747167049819,-400.0,0.00010995,2]
[360965398,1747167049828,-433.32,0.00010995,2]
[360965400,1747167049838,-400.0,0.00010995,2]
[360965403,1747167049852,-400.0,0.00010995,2]
[360965405,1747167049863,-400.0,0.00010995,2]
[360965407,1747167049873,-400.0,0.00010995,2]
[360965409,1747167049883,-400.0,0.00010995,2]
[360965411,1747167049892,-438.47,0.00010995,2]
[360965412,1747167049902,-400.0,0.00010995,2]
[360965414,1747167049912,-400.0,0.00010995,2]
[360965416,1747167049921,-400.0,0.00010995,2]
[360965418,1747167049931,-569.0,0.00010995,2]
[360965420,1747167049941,-647.36,0.00010995,2]
[360965422,1747167049951,-407.98,0.00010995,2]
[360965424,1747167049960,-400.0,0.00010995,2]
[360965426,1747167049970,-2129.16,0.00010995,2]
[360965428,1747167049980,-400.0,0.00010995,2]
[360965430,1747167049989,-657.41,0.00010995,2]
[360965432,1747167049999,-400.0,0.00010995,2]
[360965434,1747167050009,-400.0,0.00010995,2]
[360965436,1747167050018,-970.16,0.00010995,2]
[360965438,1747167050027,-3207.98,0.00010995,2]
[360965440,1747167050037,-400.0,0.00010995,2]
[360965442,1747167050046,-1946.92,0.00010995,2]
[360965444,1747167050056,-456.87,0.00010995,2]
[360965446,1747167050065,-2946.05,0.00010995,2]
[360965448,1747167050075,-400.0,0.00010995,2]
[360965450,1747167050085,-400.0,0.00010995,2]
[360965452,1747167050095,-743.23,0.00010995,2]
[360965453,1747167050105,-486.9,0.00010995,2]
[360965455,1747167050115,-570.59,0.00010995,2]
[360965457,1747167050124,-900.62,0.00010995,2]
[360965458,1747167050133,-400.0,0.00010995,2]
[360965460,1747167050143,-400.0,0.00010995,2]
[360965462,1747167050152,-400.0,0.00010995,2]
[360965464,1747167050162,-400.0,0.00010995,2]
[360965466,1747167050171,-961.37,0.00010995,2]
[360965468,1747167050180,-400.0,0.00010995,2]
[360965470,1747167050190,-1692.74,0.00010995,2]
[360965472,1747167050199,-400.0,0.00010996,2]
[360965473,1747167050208,-400.0,0.00010996,2]
[360965475,1747167050217,-400.0,0.00010996,2]
[360965477,1747167050226,-400.0,0.00010996,2]
[360965479,1747167050236,-194.56706315,0.00010996,2]
[360965481,1747167050246,-354.28009058,0.00010996,2]
[360965483,1747167050256,-400.0,0.00010996,2]
[360965485,1747167050265,-400.0,0.00010996,2]
[360965487,1747167050275,-400.0,0.00010996,2]
[360965489,1747167050285,-400.0,0.00010996,2]
[360965491,1747167050296,-400.0,0.00010996,2]
[360965493,1747167050305,-400.0,0.00010996,2]
[360965495,1747167050315,-400.0,0.00010996,2]
[360965496,1747167050325,-400.0,0.00010996,2]
[360965498,1747167050337,-430.08,0.00010996,2]
[360965500,1747167050349,-400.0,0.00010996,2]
[360965502,1747167050358,-400.0,0.00010996,2]
[360965504,1747167050368,-400.0,0.00010996,2]
[360965506,1747167050379,-400.0,0.00010996,2]
[360965508,1747167050388,-400.0,0.00010996,2]
[360965510,1747167050398,-400.0,0.00010996,2]
[360965512,1747167050407,-400.0,0.00010996,2]
[360965514,1747167050417,-400.0,0.00010996,2]
[360965516,1747167050427,-400.0,0.00010996,2]
[360965518,1747167050437,-400.0,0.00010996,2]
[360965520,1747167050446,-400.0,0.00010996,2]
[360965521,1747167050456,-400.0,0.00010996,2]
[360965523,1747167050466,-851.06,0.00010996,2]
[360965525,1747167050477,-400.0,0.00010996,2]
[360965527,1747167050486,-400.0,0.00010996,2]
[360965529,1747167050496,-400.0,0.00010996,2]
[360965530,1747167050506,-497.14,0.00010996,2]
[360965531,1747167050516,-400.0,0.00010996,2]
[360965532,1747167050528,-352.79992504,0.00010996,2]
[360965533,1747167050537,-458.48689821,0.00010996,2]
[360965534,1747167050547,-400.0,0.00010996,2]
[360965535,1747167050558,-400.0,0.00010996,2]
[360965536,1747167050568,-400.0,0.00010996,2]
[360965537,1747167050578,-400.0,0.00010996,2]
[360965538,1747167050587,-400.0,0.00010996,2]
[360965539,1747167050599,-400.0,0.00010996,2]
[360965540,1747167050609,-400.0,0.00010996,2]
[360965542,1747167050618,-400.0,0.00010996,2]
[360965544,1747167050628,-400.0,0.00010996,2]
[360965546,1747167050637,-400.0,0.00010996,2]
[360965548,1747167050647,-400.0,0.00010996,2]
[360965550,1747167050657,-400.0,0.00010996,2]
[360965552,1747167050667,-400.0,0.00010996,2]
[360965554,1747167050676,-400.0,0.00010996,2]
[360965555,1747167050686,-400.0,0.00010996,2]
[360965557,1747167050695,-198.94485698,0.00010996,2]
[360965559,1747167050705,-400.0,0.00010996,2]
[360965561,1747167050714,-400.0,0.00010996,2]
[360965563,1747167050724,-773.71,0.00010996,2]
[360965565,1747167050735,-719.51,0.00010996,2]
[360965567,1747167050746,-400.0,0.00010996,2]
[360965569,1747167050756,-400.0,0.00010996,2]
[360965571,1747167050767,-400.0,0.00010996,2]
[360965573,1747167050776,-400.0,0.00010996,2]
[360965575,1747167050785,-400.0,0.00010996,2]
[360965577,1747167050795,-400.0,0.00010996,2]
[360965579,1747167050805,-820.3,0.00010996,2]
[360965581,1747167050814,-400.0,0.00010996,2]
[360965583,1747167050824,-400.0,0.00010996,2]
[360965585,1747167050833,-400.0,0.00010996,2]
[360965587,1747167050843,-400.0,0.00010996,2]
[360965589,1747167050854,-838.65,0.00010996,2]
[360965591,1747167050863,-400.0,0.00010996,2]
[360965593,1747167050872,-474.36,0.00010996,2]
[360965595,1747167050882,-767.67,0.00010996,2]
[360965596,1747167050891,-450.30012155,0.00010996,2]
[360965598,1747167050900,-1952.94,0.00010996,2]
[360965600,1747167050910,-400.0,0.00010996,2]
[360965602,1747167050920,-400.0,0.00010996,2]
[360965604,1747167050930,-400.0,0.00010996,2]
[360965606,1747167050939,-400.0,0.00010996,2]
[360965608,1747167050949,-400.0,0.00010996,2]
[360965610,1747167050958,-400.0,0.00010996,2]
[360965612,1747167050967,-400.0,0.00010996,2]
[360965614,1747167050977,-400.0,0.00010996,2]
[360965616,1747167050986,-400.0,0.00010996,2]
[360965618,1747167050995,-574.11,0.00010996,2]
[360965620,1747167051005,-829.88,0.00010996,2]
[360965621,1747167051014,-400.0,0.00010996,2]
[360965623,1747167051024,-552.15,0.00010996,2]
[360965625,1747167051033,-1374.99,0.00010996,2]
[360965627,1747167051043,-416.97,0.00010996,2]
[360965629,1747167051053,-400.0,0.00010996,2]
[360965631,1747167051062,-400.0,0.00010996,2]
[360965633,1747167051072,-400.0,0.00010996,2]
[360965635,1747167051081,-400.0,0.00010996,2]
[360965637,1747167051091,-1346.46,0.00010996,2]
[360965639,1747167051101,-839.42,0.00010996,2]
[360965641,1747167051111,-400.0,0.00010996,2]
[360965643,1747167051120,-400.0,0.00010996,2]
[360965645,1747167051129,-400.0,0.00010996,2]
[360965647,1747167051139,-801.74,0.00010996,2]
[360965649,1747167051148,-400.0,0.00010996,2]
[360965651,1747167051158,-400.0,0.00010996,2]
[360965672,1747167051358,-472.9,0.00010996,2]
[360965674,1747167051369,-4009.52,0.00010996,2]
[360965676,1747167051381,-303.74069092,0.00010996,2]
[360965678,1747167051391,-1179.53,0.00010996,2]
[360965680,1747167051400,-400.0,0.00010996,2]
[360965682,1747167051410,-1552.07,0.00010996,2]
[360965684,1747167051420,-1234.22,0.00010996,2]
[360965686,1747167051430,-400.0,0.00010996,2]
[360965688,1747167051439,-400.0,0.00010996,2]
[360965690,1747167051448,-400.0,0.00010996,2]
[360965691,1747167051458,-1149.23,0.00010996,2]
[360965693,1747167051467,-200.0,0.00010996,2]
[360965695,1747167051476,-400.0,0.00010996,2]
[360965697,1747167051486,-400.0,0.00010996,2]
[360965699,1747167051495,-356.94231678,0.00010996,2]
[360965701,1747167051505,-776.39,0.00010996,2]
[360965703,1747167051515,-400.0,0.00010996,2]
[360965705,1747167051524,-400.0,0.00010996,2]
[360965707,1747167051534,-400.0,0.00010996,2]
[360965709,1747167051544,-639.03,0.00010996,2]
[360965711,1747167051555,-883.12,0.00010996,2]
[360965713,1747167051564,-400.0,0.00010996,2]
[360965715,1747167051575,-400.0,0.00010996,2]
[360965717,1747167051584,-578.68,0.00010996,2]
[360965719,1747167051594,-400.0,0.00010996,2]
[360965721,1747167051605,-400.0,0.00010996,2]
[360965723,1747167051614,-400.0,0.00010996,2]
[360965725,1747167051624,-1073.27,0.00010996,2]
[360965727,1747167051634,-435.44,0.00010996,2]
[360965729,1747167051643,-606.99,0.00010996,2]
[360965731,1747167051653,-497.06,0.00010996,2]
[360965733,1747167051661,-400.0,0.00010996,2]
[360965735,1747167051670,-400.0,0.00010996,2]
[360965737,1747167051679,-400.0,0.00010996,2]
[360965738,1747167051689,-400.0,0.00010996,2]
[360965741,1747167051699,-1486.55,0.00010996,2]
[360965742,1747167051709,-400.0,0.00010996,2]
[360965744,1747167051718,-463.88,0.00010996,2]
[360965746,1747167051728,-400.0,0.00010996,2]
[360965748,1747167051737,-152.65,0.00010996,2]
[360965750,1747167051747,-400.0,0.00010996,2]
[360965752,1747167051757,-1935.18,0.00010996,2]
[360965754,1747167051766,-500.0,0.00010996,2]
[360965756,1747167051776,-1020.92,0.00010996,2]
[360965758,1747167051786,-400.0,0.00010996,2]
[360965760,1747167051795,-419.73,0.00010996,2]
[360965762,1747167051804,-400.0,0.00010996,2]
[360965764,1747167051814,-1916.99,0.00010996,2]
[360965766,1747167051823,-1144.26,0.00010996,2]
[360965768,1747167051833,-434.50972266,0.00010996,2]
[360965770,1747167051842,-374.07814737,0.00010996,2]
[360965772,1747167051852,-400.0,0.00010996,2]
[360965774,1747167051862,-589.55,0.00010996,2]
[360965776,1747167051871,-400.0,0.00010996,2]
[360965778,1747167051880,-400.0,0.00010996,2]
[360965780,1747167051889,-780.26,0.00010996,2]
[360965782,1747167051899,-400.0,0.00010996,2]
[360965784,1747167051908,-400.0,0.00010996,2]
[360965786,1747167051917,-400.0,0.00010996,2]
[360965787,1747167051927,-400.0,0.00010996,2]
[360965790,1747167051937,-400.0,0.00010996,2]
[360965791,1747167051946,-400.0,0.00010996,2]
[360965793,1747167051956,-400.0,0.00010996,2]
[360965795,1747167051965,-400.0,0.00010996,2]
[360965797,1747167051975,-400.0,0.00010996,2]
[360965799,1747167051985,-400.0,0.00010996,2]
[360965802,1747167051995,-400.0,0.00010996,2]
[360965803,1747167052004,-400.0,0.00010996,2]
[360965805,1747167052013,-851.06,0.00010996,2]
[360965807,1747167052022,-400.0,0.00010997,2]
[360965809,1747167052032,-400.0,0.00010997,2]
[360965811,1747167052041,-531.05,0.00010997,2]
[360965813,1747167052051,-1264.04,0.00010997,2]
[360965815,1747167052061,-581.53,0.00010997,2]
[360965817,1747167052070,-400.0,0.00010997,2]
[360965819,1747167052080,-56517.1149281,0.00010997,2]
[360965821,1747167052089,-400.0,0.00010997,2]
[360965823,1747167052099,-679.5,0.00010997,2]
[360965825,1747167052108,-1000.0,0.00010997,2]
[360965827,1747167052118,-7023.6032816,0.00010997,2]
[360965829,1747167052129,-481.14,0.00010997,2]
[360965831,1747167052138,-438.86,0.00010997,2]
[360965833,1747167052147,-2922.8235727,0.00010997,2]
[360965835,1747167052157,-400.0,0.00010997,2]
[360965837,1747167052166,-400.0,0.00010997,2]
[360965839,1747167052175,-688.5,0.00010997,2]
[360965841,1747167052184,-400.0,0.00010997,2]
[360965842,1747167052194,-1321.38,0.00010997,2]
[360965844,1747167052203,-400.0,0.00010997,2]
[360965846,1747167052212,-400.0,0.00010997,2]
[360965847,1747167052221,-4678.25,0.00010997,2]
[360965849,1747167052230,-400.0,0.00010997,2]